[Event "Late-Titled-Tuesday-Blitz-June-04-2024"]
[Site "Chess.com"]
[Date "2024.06.04"]
[Round "7"]
[White "Der_Honigdachs"]
[Black "albayo"]
[Result "0-1"]
[WhiteElo "2526"]
[BlackElo "2363"]
[TimeControl "180+1"]
[EndTime "15:16:41 PDT"]
[Termination "albayo won by resignation"]

1. e4 {[%clk 0:03:00.9]} 1... d5 {[%clk 0:02:59.7]} 2. Nc3 {[%clk 0:02:57.6]}
2... dxe4 {[%clk 0:03:00]} 3. Nxe4 {[%clk 0:02:57.5]} 3... Nf6 {[%clk
0:03:00.9]} 4. Nxf6+ {[%clk 0:02:55.4]} 4... exf6 {[%clk 0:03:01.5]} 5. d4
{[%clk 0:02:54.8]} 5... Bd6 {[%clk 0:03:01.9]} 6. Bd3 {[%clk 0:02:54.4]} 6...
O-O {[%clk 0:03:02.3]} 7. Ne2 {[%clk 0:02:55]} 7... Nc6 {[%clk 0:03:02]} 8. c3
{[%clk 0:02:55.3]} 8... Re8 {[%clk 0:03:01.6]} 9. O-O {[%clk 0:02:55]} 9... Bg4
{[%clk 0:03:01.4]} 10. f3 {[%clk 0:02:52.7]} 10... Bh5 {[%clk 0:03:01.6]} 11.
Ng3 {[%clk 0:02:47.3]} 11... Bg6 {[%clk 0:03:01.5]} 12. Nf5 {[%clk 0:02:47.4]}
12... Bf8 {[%clk 0:02:56.5]} 13. Bf4 {[%clk 0:02:44.7]} 13... Qd7 {[%clk
0:02:55.1]} 14. Qc2 {[%clk 0:02:44.3]} 14... Rac8 {[%clk 0:02:52.6]} 15. Rae1
{[%clk 0:02:43.3]} 15... Ne7 {[%clk 0:02:48.6]} 16. g4 {[%clk 0:02:14.2]} 16...
Bxf5 {[%clk 0:02:28.6]} 17. Bxf5 {[%clk 0:02:13.2]} 17... Nxf5 {[%clk
0:02:28.4]} 18. Qxf5 {[%clk 0:02:13.7]} 18... Qxf5 {[%clk 0:02:28.4]} 19. gxf5
{[%clk 0:02:14.6]} 19... c5 {[%clk 0:02:28.2]} 20. d5 {[%clk 0:02:14.5]} 20...
c4 {[%clk 0:02:19.3]} 21. Re4 {[%clk 0:02:10.9]} 21... Red8 {[%clk 0:02:15]} 22.
Rd1 {[%clk 0:02:10.1]} 22... Rc5 {[%clk 0:02:06]} 23. d6 {[%clk 0:02:06.8]}
23... Rd7 {[%clk 0:01:54.2]} 24. Rdd4 {[%clk 0:01:48.6]} 24... Rxf5 {[%clk
0:01:41.9]} 25. Rxc4 {[%clk 0:01:45.5]} 25... g5 {[%clk 0:01:38.7]} 26. Bg3
{[%clk 0:01:44]} 26... Rd5 {[%clk 0:01:17.2]} 27. Rc7 {[%clk 0:01:39.4]} 27...
Rd8 {[%clk 0:01:08.1]} 28. Rxb7 {[%clk 0:01:37.8]} 28... Bxd6 {[%clk 0:01:08]}
29. Bxd6 {[%clk 0:01:30.3]} 29... R5xd6 {[%clk 0:01:00.5]} 30. Kf2 {[%clk
0:01:25.5]} 30... Rd2+ {[%clk 0:00:53.1]} 31. Re2 {[%clk 0:01:25.6]} 31... f5
{[%clk 0:00:49.3]} 32. Rxa7 {[%clk 0:01:21.1]} 32... f4 {[%clk 0:00:48.9]} 33.
Rb7 {[%clk 0:01:11.7]} 33... h5 {[%clk 0:00:47.4]} 34. h3 {[%clk 0:01:11.1]}
34... Kg7 {[%clk 0:00:44.9]} 35. a4 {[%clk 0:01:10.7]} 35... Kg6 {[%clk
0:00:43.8]} 36. a5 {[%clk 0:01:10.4]} 36... f5 {[%clk 0:00:36.5]} 37. Rb6+
{[%clk 0:01:08.5]} 37... Kg7 {[%clk 0:00:36.4]} 38. Rb5 {[%clk 0:00:53.9]} 38...
Kg6 {[%clk 0:00:34.9]} 39. Rb6+ {[%clk 0:00:54]} 39... Kg7 {[%clk 0:00:35.2]}
40. Ke1 {[%clk 0:00:46.8]} 40... Rxe2+ {[%clk 0:00:30.1]} 41. Kxe2 {[%clk
0:00:47.7]} 41... g4 {[%clk 0:00:30.4]} 42. hxg4 {[%clk 0:00:47.4]} 42... fxg4
{[%clk 0:00:28.2]} 43. fxg4 {[%clk 0:00:42.7]} 43... hxg4 {[%clk 0:00:29.1]} 44.
a6 {[%clk 0:00:42.7]} 44... f3+ {[%clk 0:00:22.2]} 45. Ke3 {[%clk 0:00:20.1]}
45... Re8+ {[%clk 0:00:22.2]} 46. Kd2 {[%clk 0:00:20.5]} 46... f2 {[%clk
0:00:21.3]} 47. Rb7+ {[%clk 0:00:17]} 47... Kg6 {[%clk 0:00:21.2]} 48. Rb6+
{[%clk 0:00:17.6]} 48... Kg5 {[%clk 0:00:21.1]} 49. Rb5+ {[%clk 0:00:17.8]}
49... Kf4 {[%clk 0:00:20.8]} 50. Rb7 {[%clk 0:00:17.3]} 50... g3 {[%clk
0:00:14.7]} 51. Rf7+ {[%clk 0:00:16.2]} 51... Kg4 {[%clk 0:00:10.9]} 52. a7
{[%clk 0:00:12.7]} 52... g2 {[%clk 0:00:10.2]} 53. Rg7+ {[%clk 0:00:13.1]} 53...
Kf3 {[%clk 0:00:08.9]} 54. Rf7+ {[%clk 0:00:13.2]} 54... Kg3 {[%clk 0:00:09.3]}
55. Rg7+ {[%clk 0:00:13.7]} 55... Kh2 {[%clk 0:00:09.8]} 56. Rh7+ {[%clk
0:00:14.6]} 56... Kg1 {[%clk 0:00:10.2]} 57. a8=Q {[%clk 0:00:11.3]} 57... Rxa8
{[%clk 0:00:09.9]} 0-1

[Event "Late-Titled-Tuesday-Blitz-June-04-2024"]
[Site "Chess.com"]
[Date "2024.06.04"]
[Round "7"]
[White "rikchessmx"]
[Black "Agustin_Meza"]
[Result "1-0"]
[WhiteElo "2347"]
[BlackElo "2177"]
[TimeControl "180+1"]
[EndTime "15:16:43 PDT"]
[Termination "rikchessmx won on time"]

1. e4 {[%clk 0:03:00.1]} 1... c5 {[%clk 0:02:57.8]} 2. Nf3 {[%clk 0:02:59.5]}
2... Nc6 {[%clk 0:02:58.1]} 3. d4 {[%clk 0:02:59.8]} 3... cxd4 {[%clk 0:02:59]}
4. Nxd4 {[%clk 0:03:00.6]} 4... e5 {[%clk 0:02:59.9]} 5. Nb5 {[%clk 0:02:59.3]}
5... d6 {[%clk 0:03:00]} 6. a4 {[%clk 0:02:58.8]} 6... a6 {[%clk 0:02:58]} 7.
N5a3 {[%clk 0:02:58.5]} 7... Nf6 {[%clk 0:02:57.2]} 8. Nc3 {[%clk 0:02:56.8]}
8... Be7 {[%clk 0:02:54.7]} 9. Be2 {[%clk 0:02:55.7]} 9... O-O {[%clk
0:02:54.5]} 10. Be3 {[%clk 0:02:56.3]} 10... Be6 {[%clk 0:02:49.1]} 11. Nc4
{[%clk 0:02:56.2]} 11... Bxc4 {[%clk 0:02:47.2]} 12. Bxc4 {[%clk 0:02:55.5]}
12... Rc8 {[%clk 0:02:47.8]} 13. b3 {[%clk 0:02:50.5]} 13... Na5 {[%clk
0:02:44.4]} 14. Qd3 {[%clk 0:02:49.8]} 14... Nxc4 {[%clk 0:02:43]} 15. bxc4
{[%clk 0:02:50.7]} 15... Qc7 {[%clk 0:02:43.6]} 16. Nd5 {[%clk 0:02:50.6]} 16...
Nxd5 {[%clk 0:02:43.5]} 17. cxd5 {[%clk 0:02:50.6]} 17... Qxc2 {[%clk
0:02:40.8]} 18. Qxc2 {[%clk 0:02:50.8]} 18... Rxc2 {[%clk 0:02:41.7]} 19. Rb1
{[%clk 0:02:50.4]} 19... Rfc8 {[%clk 0:02:40.7]} 20. O-O {[%clk 0:02:48]} 20...
R2c7 {[%clk 0:02:26.8]} 21. Rb6 {[%clk 0:02:45.2]} 21... f6 {[%clk 0:02:21.2]}
22. g3 {[%clk 0:02:41.7]} 22... Kf7 {[%clk 0:02:20.8]} 23. Rfb1 {[%clk 0:02:41]}
23... Rc4 {[%clk 0:02:00.6]} 24. Rxb7 {[%clk 0:02:40.9]} 24... Rxa4 {[%clk
0:01:53.6]} 25. Ra7 {[%clk 0:02:40]} 25... Rxe4 {[%clk 0:01:41.4]} 26. Rbb7
{[%clk 0:02:39.4]} 26... Re8 {[%clk 0:01:41.8]} 27. Bb6 {[%clk 0:02:39.9]} 27...
Kf8 {[%clk 0:01:37.4]} 28. Rxa6 {[%clk 0:02:36.3]} 28... Rb4 {[%clk 0:01:33.9]}
29. Rba7 {[%clk 0:02:34.8]} 29... Rb5 {[%clk 0:01:31]} 30. Bc7 {[%clk
0:02:29.8]} 30... Rxd5 {[%clk 0:01:30.1]} 31. Kg2 {[%clk 0:02:29.8]} 31... Rc8
{[%clk 0:01:26.1]} 32. Kf3 {[%clk 0:02:24.3]} 32... Rc5 {[%clk 0:01:00.8]} 33.
Bxd6 {[%clk 0:02:20.6]} 33... Bxd6 {[%clk 0:01:00.2]} 34. Rxd6 {[%clk
0:02:18.6]} 34... R5c7 {[%clk 0:01:00.4]} 35. Raa6 {[%clk 0:02:16.5]} 35... Ke7
{[%clk 0:00:59.4]} 36. Kg4 {[%clk 0:02:15.4]} 36... Rd7 {[%clk 0:00:53.1]} 37.
Re6+ {[%clk 0:02:13.2]} 37... Kf7 {[%clk 0:00:53]} 38. f4 {[%clk 0:02:13]} 38...
exf4 {[%clk 0:00:50.2]} 39. gxf4 {[%clk 0:02:13.2]} 39... Rc4 {[%clk 0:00:43.8]}
40. Re3 {[%clk 0:02:06.7]} 40... Rdd4 {[%clk 0:00:40.8]} 41. Rf3 {[%clk
0:02:04.5]} 41... Kg6 {[%clk 0:00:38.4]} 42. Kg3 {[%clk 0:02:01.5]} 42... h5
{[%clk 0:00:29.9]} 43. Ra7 {[%clk 0:01:50.7]} 43... Rd5 {[%clk 0:00:29]} 44. Kh4
{[%clk 0:01:47.4]} 44... Rdc5 {[%clk 0:00:20.2]} 45. Rg3+ {[%clk 0:01:41.2]}
45... Kh6 {[%clk 0:00:19.9]} 46. Rgxg7 {[%clk 0:01:32.2]} 46... Rxf4+ {[%clk
0:00:19.7]} 47. Kg3 {[%clk 0:01:32.4]} 47... Rg4+ {[%clk 0:00:10]} 48. Rxg4
{[%clk 0:01:31.3]} 48... hxg4 {[%clk 0:00:10.9]} 49. Kxg4 {[%clk 0:01:31.8]}
49... Kg6 {[%clk 0:00:11.5]} 50. Ra8 {[%clk 0:01:29.7]} 50... Rc4+ {[%clk
0:00:11.5]} 51. Kg3 {[%clk 0:01:29.8]} 51... Kg5 {[%clk 0:00:11.2]} 52. Rg8+
{[%clk 0:01:28.8]} 52... Kf5 {[%clk 0:00:10.7]} 53. h4 {[%clk 0:01:28.6]} 53...
Rc3+ {[%clk 0:00:11.2]} 54. Kh2 {[%clk 0:01:28]} 54... Rc7 {[%clk 0:00:06.8]}
55. Kh3 {[%clk 0:01:25.9]} 55... Rh7 {[%clk 0:00:07.2]} 56. Rg1 {[%clk
0:01:24.3]} 56... Kf4 {[%clk 0:00:06.2]} 57. Rf1+ {[%clk 0:01:23.7]} 57... Ke5
{[%clk 0:00:06.5]} 58. Kg4 {[%clk 0:01:23.3]} 58... Ke6 {[%clk 0:00:04.9]} 59.
h5 {[%clk 0:01:22.7]} 59... Rg7+ {[%clk 0:00:03.3]} 60. Kh4 {[%clk 0:01:22.5]}
60... Rh7 {[%clk 0:00:03.4]} 61. Rg1 {[%clk 0:01:21.4]} 61... Rh6 {[%clk
0:00:03.1]} 62. Rg8 {[%clk 0:01:19.8]} 62... Kf5 {[%clk 0:00:03.1]} 63. Rg1
{[%clk 0:01:17.7]} 63... Ke5 {[%clk 0:00:03.4]} 64. Rf1 {[%clk 0:01:16.1]} 64...
f5 {[%clk 0:00:03.5]} 65. Kg5 {[%clk 0:01:16.2]} 65... Rh8 {[%clk 0:00:04]} 66.
Rxf5+ {[%clk 0:01:15.6]} 66... Ke6 {[%clk 0:00:04.1]} 67. Rf2 {[%clk 0:01:13.8]}
67... Ke7 {[%clk 0:00:03.8]} 68. h6 {[%clk 0:01:12.9]} 68... Rg8+ {[%clk
0:00:03.5]} 69. Kh5 {[%clk 0:01:12.8]} 69... Rg1 {[%clk 0:00:03]} 70. Rf3 {[%clk
0:01:09.2]} 70... Rh1+ {[%clk 0:00:03.9]} 71. Kg6 {[%clk 0:01:09.3]} 71... Rg1+
{[%clk 0:00:04.8]} 72. Kh7 {[%clk 0:01:09.4]} 72... Ke6 {[%clk 0:00:04.7]} 73.
Rf8 {[%clk 0:01:07.4]} 73... Ke7 {[%clk 0:00:05]} 74. Rg8 {[%clk 0:01:07.4]}
74... Rh1 {[%clk 0:00:05.5]} 75. Rg6 {[%clk 0:01:07.4]} 75... Kf7 {[%clk
0:00:05.2]} 76. Rg7+ {[%clk 0:01:05.8]} 76... Kf6 {[%clk 0:00:05.6]} 77. Rg2
{[%clk 0:01:05.4]} 77... Rh5 {[%clk 0:00:05.4]} 78. Rf2+ {[%clk 0:01:05]} 78...
Kg5 {[%clk 0:00:04.9]} 79. Kg7 {[%clk 0:01:02.7]} 1-0

[Event "Late-Titled-Tuesday-Blitz-June-04-2024"]
[Site "Chess.com"]
[Date "2024.06.04"]
[Round "7"]
[White "Revan_2002"]
[Black "BabageldiAnnaberdiyev"]
[Result "0-1"]
[WhiteElo "2785"]
[BlackElo "2634"]
[TimeControl "180+1"]
[EndTime "15:16:46 PDT"]
[Termination "BabageldiAnnaberdiyev won by resignation"]

1. c4 {[%clk 0:02:59.1]} 1... e6 {[%clk 0:03:00.9]} 2. Nf3 {[%clk 0:02:59.3]}
2... d5 {[%clk 0:03:00.8]} 3. e3 {[%clk 0:02:59.9]} 3... f5 {[%clk 0:03:00.1]}
4. b3 {[%clk 0:03:00]} 4... Nf6 {[%clk 0:03:00.1]} 5. Bb2 {[%clk 0:03:00.5]}
5... c6 {[%clk 0:03:00.1]} 6. Be2 {[%clk 0:03:01.1]} 6... a5 {[%clk 0:02:59.6]}
7. O-O {[%clk 0:03:01.3]} 7... Bd6 {[%clk 0:02:59.5]} 8. d4 {[%clk 0:02:59.8]}
8... O-O {[%clk 0:02:59.3]} 9. Nbd2 {[%clk 0:02:58.2]} 9... Nbd7 {[%clk
0:02:58.8]} 10. Ne5 {[%clk 0:02:58]} 10... Ne4 {[%clk 0:02:56.6]} 11. f4 {[%clk
0:02:57.2]} 11... Ndf6 {[%clk 0:02:55.2]} 12. Nxe4 {[%clk 0:02:55]} 12... Nxe4
{[%clk 0:02:55.1]} 13. c5 {[%clk 0:02:55.2]} 13... Bxe5 {[%clk 0:02:52.1]} 14.
fxe5 {[%clk 0:02:56.1]} 14... Qg5 {[%clk 0:02:50.3]} 15. Qd3 {[%clk 0:02:54.4]}
15... b6 {[%clk 0:02:46.7]} 16. Rf4 {[%clk 0:02:49.1]} 16... Ba6 {[%clk
0:02:44.9]} 17. Qc2 {[%clk 0:02:49.6]} 17... Bxe2 {[%clk 0:02:44.8]} 18. Qxe2
{[%clk 0:02:50.5]} 18... bxc5 {[%clk 0:02:44.8]} 19. dxc5 {[%clk 0:02:51.4]}
19... a4 {[%clk 0:02:42.4]} 20. b4 {[%clk 0:02:51.1]} 20... a3 {[%clk
0:02:41.8]} 21. Bd4 {[%clk 0:02:51]} 21... Rfb8 {[%clk 0:02:39.6]} 22. Rb1
{[%clk 0:02:51.1]} 22... h5 {[%clk 0:02:37.6]} 23. h4 {[%clk 0:02:37.8]} 23...
Qg6 {[%clk 0:02:33]} 24. b5 {[%clk 0:02:37]} 24... cxb5 {[%clk 0:02:26.4]} 25.
Rxb5 {[%clk 0:02:37.9]} 25... Qe8 {[%clk 0:02:25.9]} 26. Rb6 {[%clk 0:02:36.5]}
26... Rc8 {[%clk 0:02:18.1]} 27. Qc2 {[%clk 0:02:29.4]} 27... Rc6 {[%clk
0:02:13.2]} 28. Rf1 {[%clk 0:02:27.5]} 28... Rac8 {[%clk 0:02:12.1]} 29. Rxc6
{[%clk 0:02:26.1]} 29... Qxc6 {[%clk 0:02:12.6]} 30. Rc1 {[%clk 0:02:26.6]}
30... Rb8 {[%clk 0:02:00.2]} 31. Kh2 {[%clk 0:02:25.8]} 31... Kh7 {[%clk
0:01:58.2]} 32. Qd3 {[%clk 0:02:20.1]} 32... Qe8 {[%clk 0:01:54.3]} 33. Qe2
{[%clk 0:02:02.9]} 33... Qg6 {[%clk 0:01:34]} 34. Qf3 {[%clk 0:02:03]} 34... Nd2
{[%clk 0:01:34.5]} 35. Qg3 {[%clk 0:02:01.7]} 35... Nc4 {[%clk 0:01:34]} 36. Qf3
{[%clk 0:01:48.5]} 36... Qg4 {[%clk 0:01:31.1]} 37. Qxg4 {[%clk 0:01:45.5]}
37... hxg4 {[%clk 0:01:32]} 38. Kg3 {[%clk 0:01:46]} 38... Kg6 {[%clk
0:01:30.3]} 39. e4 {[%clk 0:01:39.2]} 39... fxe4 {[%clk 0:01:25.2]} 40. Kxg4
{[%clk 0:01:40.1]} 40... e3 {[%clk 0:01:25.3]} 41. h5+ {[%clk 0:01:25.9]} 41...
Kh7 {[%clk 0:01:23.4]} 42. Rf1 {[%clk 0:01:06.1]} 42... Kg8 {[%clk 0:01:07]} 43.
Kg5 {[%clk 0:01:04.7]} 43... Rc8 {[%clk 0:00:53]} 44. Rb1 {[%clk 0:01:00.7]}
44... Kh7 {[%clk 0:00:48]} 45. g4 {[%clk 0:00:54.7]} 45... Nd2 {[%clk
0:00:44.1]} 46. Rc1 {[%clk 0:00:31.2]} 46... Nf3+ {[%clk 0:00:43.5]} 47. Kf4
{[%clk 0:00:31.3]} 47... Nxd4 {[%clk 0:00:44]} 48. Kxe3 {[%clk 0:00:32]} 48...
Nc6 {[%clk 0:00:44.4]} 49. g5 {[%clk 0:00:28]} 49... Nxe5 {[%clk 0:00:43.5]} 50.
Kf4 {[%clk 0:00:27.8]} 50... Nc4 {[%clk 0:00:42.8]} 51. Rb1 {[%clk 0:00:24.2]}
51... e5+ {[%clk 0:00:39.4]} 52. Kf5 {[%clk 0:00:23.6]} 52... Rf8+ {[%clk
0:00:39.1]} 53. Ke6 {[%clk 0:00:24]} 53... d4 {[%clk 0:00:36]} 54. c6 {[%clk
0:00:24.1]} 54... d3 {[%clk 0:00:35.9]} 55. c7 {[%clk 0:00:24.4]} 55... d2
{[%clk 0:00:35.2]} 56. Ke7 {[%clk 0:00:12.9]} 56... Rc8 {[%clk 0:00:34.7]} 57.
Kd7 {[%clk 0:00:12.3]} 57... Rxc7+ {[%clk 0:00:34.9]} 58. Kxc7 {[%clk
0:00:13.2]} 58... Nb2 {[%clk 0:00:34]} 59. Kd6 {[%clk 0:00:12.2]} 59... d1=Q+
{[%clk 0:00:33.6]} 60. Rxd1 {[%clk 0:00:11.6]} 60... Nxd1 {[%clk 0:00:34.5]} 61.
Ke6 {[%clk 0:00:08.6]} 61... Nc3 {[%clk 0:00:34.4]} 62. Kf7 {[%clk 0:00:07.1]}
62... Ne4 {[%clk 0:00:27.3]} 63. Ke6 {[%clk 0:00:06.7]} 63... Nxg5+ {[%clk
0:00:26.6]} 64. Kxe5 {[%clk 0:00:06.8]} 64... Kh6 {[%clk 0:00:27.2]} 0-1

[Event "Late-Titled-Tuesday-Blitz-June-04-2024"]
[Site "Chess.com"]
[Date "2024.06.04"]
[Round "7"]
[White "BerlinDrawer"]
[Black "ChessQueen"]
[Result "0-1"]
[WhiteElo "2577"]
[BlackElo "2737"]
[TimeControl "180+1"]
[EndTime "15:16:48 PDT"]
[Termination "ChessQueen won by resignation"]

1. d4 {[%clk 0:02:59.8]} 1... f5 {[%clk 0:02:59.6]} 2. Bg5 {[%clk 0:02:58.7]}
2... Nf6 {[%clk 0:02:56.6]} 3. Bxf6 {[%clk 0:02:58.5]} 3... exf6 {[%clk
0:02:56.7]} 4. e3 {[%clk 0:02:58.6]} 4... d5 {[%clk 0:02:40.9]} 5. c4 {[%clk
0:02:58.8]} 5... c6 {[%clk 0:02:30.9]} 6. cxd5 {[%clk 0:02:57]} 6... Qxd5 {[%clk
0:02:30.6]} 7. Nc3 {[%clk 0:02:56.8]} 7... Qa5 {[%clk 0:02:30.7]} 8. Bc4 {[%clk
0:02:55.9]} 8... b5 {[%clk 0:02:23.9]} 9. Bb3 {[%clk 0:02:54.9]} 9... Na6 {[%clk
0:02:01.2]} 10. Ne2 {[%clk 0:02:39.9]} 10... Bd7 {[%clk 0:02:00]} 11. O-O {[%clk
0:02:39.3]} 11... O-O-O {[%clk 0:01:58.7]} 12. a4 {[%clk 0:02:35.1]} 12... b4
{[%clk 0:01:58.2]} 13. Nb1 {[%clk 0:02:33.9]} 13... Kb8 {[%clk 0:01:47.1]} 14.
Nd2 {[%clk 0:02:32.6]} 14... Bc8 {[%clk 0:01:45.8]} 15. Qc2 {[%clk 0:02:27.9]}
15... c5 {[%clk 0:01:41.5]} 16. d5 {[%clk 0:02:25.5]} 16... Qc7 {[%clk
0:01:33.5]} 17. Bc4 {[%clk 0:02:16.8]} 17... Bd6 {[%clk 0:01:29.7]} 18. g3
{[%clk 0:02:15]} 18... Ka8 {[%clk 0:01:29]} 19. Nf4 {[%clk 0:01:56.4]} 19...
Bxf4 {[%clk 0:01:17.9]} 20. exf4 {[%clk 0:01:56.9]} 20... Qd6 {[%clk 0:01:15.1]}
21. Rfe1 {[%clk 0:01:44.6]} 21... Nc7 {[%clk 0:01:15.2]} 22. Nf1 {[%clk
0:01:39.6]} 22... Rhe8 {[%clk 0:01:08]} 23. Ne3 {[%clk 0:01:36.5]} 23... g6
{[%clk 0:01:07.6]} 24. Rad1 {[%clk 0:01:29.7]} 24... Bb7 {[%clk 0:01:06.5]} 25.
b3 {[%clk 0:01:27.3]} 25... h5 {[%clk 0:01:05.2]} 26. h4 {[%clk 0:01:25.6]}
26... Re4 {[%clk 0:01:04.9]} 27. Bf1 {[%clk 0:01:21.3]} 27... Rde8 {[%clk
0:00:58.6]} 28. Bg2 {[%clk 0:01:19.7]} 28... Rxe3 {[%clk 0:00:33.4]} 29. Rxe3
{[%clk 0:01:12.8]} 29... Rxe3 {[%clk 0:00:33.2]} 30. fxe3 {[%clk 0:01:13.7]}
30... Kb8 {[%clk 0:00:31.7]} 31. e4 {[%clk 0:01:10.3]} 31... fxe4 {[%clk
0:00:31.7]} 32. Qxe4 {[%clk 0:01:10.4]} 32... Ba6 {[%clk 0:00:17.8]} 33. Bf1
{[%clk 0:01:08.1]} 33... Bxf1 {[%clk 0:00:14]} 34. Kxf1 {[%clk 0:01:07.6]} 34...
Qd7 {[%clk 0:00:12.1]} 35. Kg2 {[%clk 0:01:04.4]} 35... Ne8 {[%clk 0:00:07.3]}
36. Qe6 {[%clk 0:00:58]} 36... Kc7 {[%clk 0:00:07.1]} 37. Re1 {[%clk 0:00:38.4]}
37... Ng7 {[%clk 0:00:07]} 38. Qxd7+ {[%clk 0:00:23.8]} 38... Kxd7 {[%clk
0:00:06.8]} 39. Kf3 {[%clk 0:00:22.3]} 39... Nf5 {[%clk 0:00:04.9]} 40. Rd1
{[%clk 0:00:16.8]} 40... Kd6 {[%clk 0:00:04.9]} 41. g4 {[%clk 0:00:14.3]} 41...
hxg4+ {[%clk 0:00:04.6]} 42. Ke4 {[%clk 0:00:12.4]} 42... Nxh4 {[%clk
0:00:04.6]} 43. Rh1 {[%clk 0:00:10.5]} 43... f5+ {[%clk 0:00:05.2]} 44. Ke3
{[%clk 0:00:10.4]} 44... Ng2+ {[%clk 0:00:05.3]} 45. Kf2 {[%clk 0:00:10.3]}
45... Nxf4 {[%clk 0:00:06.2]} 46. Kg3 {[%clk 0:00:10.5]} 46... Nxd5 {[%clk
0:00:06.2]} 47. Rh6 {[%clk 0:00:10.5]} 47... Ke5 {[%clk 0:00:05.7]} 48. Rxg6
{[%clk 0:00:10.5]} 48... Ne3 {[%clk 0:00:05.7]} 49. Ra6 {[%clk 0:00:09.4]} 49...
f4+ {[%clk 0:00:06]} 50. Kf2 {[%clk 0:00:09.1]} 50... g3+ {[%clk 0:00:06.4]} 51.
Kf3 {[%clk 0:00:09.2]} 51... g2 {[%clk 0:00:06.9]} 52. Kf2 {[%clk 0:00:09.5]}
52... Kd4 {[%clk 0:00:06.7]} 53. Rf6 {[%clk 0:00:09.2]} 53... Kc3 {[%clk
0:00:04.4]} 54. Rxf4 {[%clk 0:00:08.6]} 54... Nd1+ {[%clk 0:00:05]} 55. Kxg2
{[%clk 0:00:08.5]} 55... Kxb3 {[%clk 0:00:05.5]} 56. Rf5 {[%clk 0:00:08.4]}
56... c4 {[%clk 0:00:05.3]} 57. Rf3+ {[%clk 0:00:07.4]} 57... c3 {[%clk
0:00:05.5]} 0-1

[Event "Late-Titled-Tuesday-Blitz-June-04-2024"]
[Site "Chess.com"]
[Date "2024.06.04"]
[Round "7"]
[White "Michalczak"]
[Black "Pachonpower"]
[Result "0-1"]
[WhiteElo "2511"]
[BlackElo "2390"]
[TimeControl "180+1"]
[EndTime "15:16:48 PDT"]
[Termination "Pachonpower won on time"]

1. e4 {[%clk 0:03:00]} 1... e6 {[%clk 0:02:58.5]} 2. d4 {[%clk 0:02:59.4]} 2...
d5 {[%clk 0:02:59.4]} 3. Nc3 {[%clk 0:02:59.6]} 3... dxe4 {[%clk 0:02:58.6]} 4.
Nxe4 {[%clk 0:02:58.7]} 4... Nd7 {[%clk 0:02:58.9]} 5. Nf3 {[%clk 0:02:56.4]}
5... Ngf6 {[%clk 0:02:59.8]} 6. Nxf6+ {[%clk 0:02:56.3]} 6... Nxf6 {[%clk
0:03:00.7]} 7. c3 {[%clk 0:02:56]} 7... b6 {[%clk 0:03:01]} 8. Bb5+ {[%clk
0:02:53.1]} 8... Bd7 {[%clk 0:03:01.1]} 9. Bxd7+ {[%clk 0:02:52.4]} 9... Qxd7
{[%clk 0:03:02]} 10. Ne5 {[%clk 0:02:51.8]} 10... Qd5 {[%clk 0:03:02.3]} 11. O-O
{[%clk 0:02:50.4]} 11... b5 {[%clk 0:02:51.7]} 12. a4 {[%clk 0:02:49.2]} 12...
Bd6 {[%clk 0:02:46.3]} 13. Bf4 {[%clk 0:02:38.4]} 13... O-O {[%clk 0:02:41.2]}
14. Re1 {[%clk 0:02:34.3]} 14... Rfb8 {[%clk 0:02:29.6]} 15. axb5 {[%clk
0:02:32.7]} 15... Qxb5 {[%clk 0:02:30.5]} 16. Ra2 {[%clk 0:02:16.2]} 16... a5
{[%clk 0:02:27.9]} 17. c4 {[%clk 0:02:08.8]} 17... Qb4 {[%clk 0:02:17.2]} 18.
Nc6 {[%clk 0:02:04.9]} 18... Qxc4 {[%clk 0:02:17.1]} 19. Nxb8 {[%clk 0:01:56.4]}
19... Qxa2 {[%clk 0:02:15.9]} 20. Nc6 {[%clk 0:01:46.6]} 20... Bxf4 {[%clk
0:02:14.5]} 21. Qf3 {[%clk 0:01:42.5]} 21... Bd6 {[%clk 0:01:46.3]} 22. Ne7+
{[%clk 0:01:32.8]} 22... Bxe7 {[%clk 0:01:46.5]} 23. Qxa8+ {[%clk 0:01:32.6]}
23... Bf8 {[%clk 0:01:46.9]} 24. Qb8 {[%clk 0:01:14.4]} 24... Nd5 {[%clk
0:01:44.9]} 25. g3 {[%clk 0:01:13]} 25... g6 {[%clk 0:01:44.4]} 26. Qb5 {[%clk
0:01:02.7]} 26... Kg7 {[%clk 0:01:40.5]} 27. h4 {[%clk 0:01:01.1]} 27... Bb4
{[%clk 0:01:33.6]} 28. Re2 {[%clk 0:00:59.5]} 28... Qb1+ {[%clk 0:01:33.6]} 29.
Kh2 {[%clk 0:00:57.2]} 29... Qf5 {[%clk 0:01:31.7]} 30. Qc4 {[%clk 0:00:50.6]}
30... Bd6 {[%clk 0:01:26.6]} 31. Kg1 {[%clk 0:00:50.3]} 31... Qf3 {[%clk
0:01:18.9]} 32. Qa6 {[%clk 0:00:46.1]} 32... Qg4 {[%clk 0:00:56.1]} 33. Qc4
{[%clk 0:00:37.9]} 33... Nf4 {[%clk 0:00:53.5]} 34. Rd2 {[%clk 0:00:28.5]} 34...
Nh3+ {[%clk 0:00:50.5]} 35. Kg2 {[%clk 0:00:19.9]} 35... g5 {[%clk 0:00:47.6]}
36. hxg5 {[%clk 0:00:19.4]} 36... Nxg5 {[%clk 0:00:47.5]} 37. Qd3 {[%clk
0:00:18.6]} 37... Qh3+ {[%clk 0:00:42.9]} 38. Kg1 {[%clk 0:00:18.2]} 38... f5
{[%clk 0:00:41]} 39. Re2 {[%clk 0:00:18.2]} 39... Qg4 {[%clk 0:00:35.1]} 40. d5
{[%clk 0:00:17.4]} 40... e5 {[%clk 0:00:33.2]} 41. Rc2 {[%clk 0:00:16.4]} 41...
e4 {[%clk 0:00:30.6]} 42. Qd4+ {[%clk 0:00:16.2]} 42... Kg6 {[%clk 0:00:31.2]}
43. Qh8 {[%clk 0:00:15.2]} 43... Nf3+ {[%clk 0:00:30.9]} 44. Kg2 {[%clk
0:00:14.6]} 44... Nh4+ {[%clk 0:00:24.4]} 45. Kh2 {[%clk 0:00:11.2]} 45... Nf3+
{[%clk 0:00:16.4]} 46. Kg2 {[%clk 0:00:11.5]} 46... Be5 {[%clk 0:00:09.7]} 47.
Qe8+ {[%clk 0:00:10.2]} 47... Kh6 {[%clk 0:00:09.8]} 48. Rc1 {[%clk 0:00:08.1]}
48... Nh4+ {[%clk 0:00:08.9]} 49. Kh2 {[%clk 0:00:08.4]} 49... Bd6 {[%clk
0:00:08]} 50. Rh1 {[%clk 0:00:06.9]} 50... Ng6 {[%clk 0:00:07.1]} 51. Kg2+
{[%clk 0:00:06.7]} 51... Kg7 {[%clk 0:00:07.5]} 52. Qd7+ {[%clk 0:00:06.6]}
52... Ne7 {[%clk 0:00:06]} 53. Qe6 {[%clk 0:00:05.4]} 53... Qf3+ {[%clk
0:00:06.3]} 54. Kg1 {[%clk 0:00:05]} 54... Ng6 {[%clk 0:00:06.8]} 55. Rxh7+
{[%clk 0:00:02.3]} 55... Kxh7 {[%clk 0:00:06.8]} 56. Qf7+ {[%clk 0:00:03]} 56...
Kh6 {[%clk 0:00:07.5]} 57. Qg8 {[%clk 0:00:03.1]} 57... Qd1+ {[%clk 0:00:07]}
58. Kg2 {[%clk 0:00:03]} 58... Qf3+ {[%clk 0:00:07.9]} 59. Kg1 {[%clk
0:00:03.8]} 59... Bxg3 {[%clk 0:00:08.5]} 60. fxg3 {[%clk 0:00:03]} 60... Qxg3+
{[%clk 0:00:09.2]} 61. Kf1 {[%clk 0:00:03.9]} 61... Qf3+ {[%clk 0:00:09.5]} 62.
Ke1 {[%clk 0:00:04.6]} 62... e3 {[%clk 0:00:10.2]} 0-1